lending/lending_fUSD_20260306
["ID","MTS","AMOUNT","RATE_DAILY","PERIOD"]
[407785769,1772797895721,-1835186.01343192,0.000464,120]
[407785770,1772797896379,-5.23376758,0.000199,2]
[407785771,1772797896620,-2453.76623242,0.000199,2]
[407785772,1772797896631,-266.33272761,0.0002,2]
[407785773,1772797896667,-542.05773539,0.0002,2]
[407785774,1772797896677,-241.88349887,0.00021083,2]
[407785775,1772797896879,-324.05020339,0.000156,2]
[407785776,1772797896890,-184.11650113,0.00021083,2]
[407785777,1772797896900,-426.0,0.00021357,2]
[407785778,1772797896910,-426.0,0.00021631,2]
[407785779,1772797896921,-426.0,0.00021905,2]
[407785780,1772797896931,-331.47329548,0.00022179,2]
[407785781,1772797896953,-94.52670452,0.00022179,2]
[407785782,1772797896967,-426.0,0.00022453,2]
[407785783,1772797896978,-426.0,0.00022727,2]
[407785784,1772797896987,-2459.0,0.000229,2]
[407785785,1772797896998,-426.0,0.00023001,2]
[407785786,1772797897009,-426.0,0.00023275,2]
[407785787,1772797897018,-426.0,0.00023549,2]
[407785788,1772797897029,-426.0,0.00023823,2]
[407785789,1772797897039,-426.0,0.00024097,2]
[407785790,1772797897049,-1189.0,0.00025192,2]
[407785791,1772797897059,-2507.03300846,0.00025466,2]
[407785792,1772797897069,-1203.14191424,0.00025466,2]
[407785793,1772797897079,-2459.0,0.000259,2]
[407785794,1772797897089,-151.0,0.00026552,2]
[407785795,1772797897101,-2459.0,0.000289,2]
[407785796,1772797897111,-2459.0,0.000319,2]
[407785797,1772797897121,-2459.0,0.000349,2]
[407785798,1772797897131,-151.0,0.00035616,7]
[407785799,1772797897141,-507.9370095,0.00035616,7]
[407785800,1772797897151,-2459.0,0.000379,2]
[407785801,1772797897161,-151.0,0.0004,120]
[407785802,1772797897171,-2459.0,0.000409,2]
[407785803,1772797897182,-192.200977,0.00041096,120]
[407785804,1772797897193,-223.858172,0.00041096,120]
[407785805,1772797897203,-307.934071,0.00041096,120]
[407785806,1772797897214,-151.245665,0.00041096,120]
[407785807,1772797897224,-192.200977,0.00041096,120]
[407785808,1772797897234,-223.858172,0.00041096,120]
[407785809,1772797897244,-307.934071,0.00041096,120]
[407785810,1772797897254,-151.245665,0.00041096,120]
[407785811,1772797897264,-151.245665,0.00041096,120]
[407785812,1772797897274,-307.934071,0.00041096,120]
[407785813,1772797897283,-307.934071,0.00041096,120]
[407785814,1772797897293,-307.934071,0.00041096,120]
[407785815,1772797897303,-223.858172,0.00041096,120]
[407785816,1772797897313,-307.934071,0.00041096,120]
[407785817,1772797897323,-223.858172,0.00041096,120]
[407785818,1772797897333,-307.934071,0.00041096,120]
[407785819,1772797897343,-223.858172,0.00041096,120]
[407785820,1772797897353,-307.934071,0.00041096,120]
[407785821,1772797897363,-223.858172,0.00041096,120]
[407785822,1772797897373,-223.858172,0.00041096,120]
[407785823,1772797897383,-223.858172,0.00041096,120]
[407785824,1772797897393,-223.858172,0.00041096,120]
[407785825,1772797897403,-192.200977,0.0004321,120]
[407785826,1772797897413,-307.934071,0.0004321,120]
[407785827,1772797897424,-151.245665,0.0004321,120]
[407785828,1772797897434,-307.934071,0.0004321,120]
[407785829,1772797897444,-223.858172,0.0004321,120]
[407785830,1772797897454,-307.934071,0.0004321,120]
[407785831,1772797897464,-223.858172,0.0004321,120]
[407785832,1772797897474,-151.0,0.0004321,120]
[407785833,1772797897484,-223.858172,0.0004321,120]
[407785834,1772797897495,-2459.0,0.000439,2]
[407785835,1772797897505,-555.81,0.00045,30]
[407785836,1772797897516,-2001.86,0.00045,30]
[407785837,1772797897526,-3310.3,0.00045,30]
[407785838,1772797897536,-192.200971,0.00046,120]
[407785839,1772797897546,-307.934071,0.00046,120]
[407785840,1772797897557,-151.245667,0.00046,120]
[407785841,1772797897567,-307.934071,0.00046,120]
[407785842,1772797897577,-223.858172,0.00046,120]
[407785843,1772797897587,-307.934064,0.00046,120]
[407785844,1772797897597,-223.858172,0.00046,120]
[407785845,1772797897609,-151.0,0.00046,120]
[407785846,1772797897620,-24619.82859076,0.000464,120]
[407785847,1772797897645,-426.0,0.0002437,2]
[407785848,1772797897655,-4885.88564581,0.000464,120]
[407785849,1772797897769,-2192.18338132,0.000464,120]
[407785850,1772797897782,-32597.79857938,0.000464,120]
[407785851,1772797897927,554.3546204,0.000155,2]
[407785852,1772797898312,279.02229031,0.0001555,2]
[407785853,1772797898684,600.0,0.00015525,2]
[407785854,1772797898799,263.50647075,0.00015525,2]
[407785855,1772797898871,500.0,0.00015599,2]
[407785856,1772797898901,404.5241817,0.00015599,2]
[407785857,1772797898950,500.0,0.00015599,2]
[407785858,1772797898994,500.0,0.00015599,2]
[407785859,1772797899040,286.89449925,0.00015599,2]
[407785860,1772797899092,500.0,0.00015599,2]
[407785861,1772797966371,500.0,0.00015599,2]
[407785862,1772797966404,500.0,0.00015599,2]
[407785863,1772797966442,500.0,0.00015599,2]
[407785864,1772797966488,500.0,0.00015599,2]
[407785865,1772797966531,500.0,0.00015599,2]
[407785866,1772797966579,500.0,0.00015599,2]
[407785867,1772797966636,500.0,0.00015599,2]
[407785868,1772797966694,500.0,0.00015599,2]
[407785869,1772797966762,602.0561406,0.00015599,2]
[407785870,1772798183321,515.0,0.00014,2]
[407785873,1772798394419,5114.46397937,9.95e-05,2]
[407785875,1772798474589,260.9447649,0.000101,2]
[407785876,1772798492769,150.0,0.00015499,2]
[407785922,1772798556698,515.0,0.00014,2]
[407785925,1772798556912,9074.0652351,9.5e-05,3]
[407785926,1772798556933,2424.1013588,9.5e-05,3]
[407785989,1772798739921,-151.0,0.00015,2]
[407785990,1772798740015,-99.0,0.00015,2]
[407786065,1772798917188,515.0,0.00014,2]
[407786089,1772799032029,-600.0,0.0001525,2]
[407786090,1772799032039,-277.0,0.0001525,2]
[407786091,1772799032049,-1440.09451217,0.00015375,2]
[407786092,1772799032059,-1107.9,0.000155,2]
[407786093,1772799032068,-200.0,0.00015559,2]
[407786094,1772799032078,-600.0,0.00015743,2]
[407786095,1772799032088,-1543.93,0.000161,2]
[407786096,1772799032098,-300.0,0.00016108,2]
[407786097,1772799032107,-1200.0,0.00016108,2]
[407786098,1772799032116,-300.0,0.00016108,2]
[407786099,1772799032126,-3240.0,0.00016109,2]
[407786100,1772799032136,-500.0,0.00016109,2]
[407786101,1772799032146,-5000.0,0.000162,5]
[407786102,1772799032155,-200.0,0.00016462,2]
[407786103,1772799032164,-600.0,0.000165,2]
[407786104,1772799032174,-300.0,0.000165,2]
[407786105,1772799032184,-300.0,0.000165,2]
[407786106,1772799032193,-3439.89,0.00016506,2]
[407786107,1772799032203,-166.66,0.00016745,2]
[407786108,1772799032212,-3998.76322387,0.00016775,2]
[407786109,1772799032222,-250.0,0.00016775,2]
[407786110,1772799032232,-300.0,0.00016775,2]
[407786111,1772799032241,-500.0,0.00016775,2]
[407786112,1772799032251,-1451.6053566,0.00016775,2]
[407786113,1772799032260,-5000.0,0.00016775,2]
[407786114,1772799032269,-172.87,0.0001679,2]
[407786115,1772799032280,-500.0,0.00016799,2]
[407786116,1772799032290,-500.0,0.00016799,2]
[407786117,1772799032304,-500.0,0.00016799,2]
[407786118,1772799032314,-500.0,0.00016799,2]
[407786119,1772799032324,-501.89301676,0.00016799,2]
[407786121,1772799032334,-150.0,0.0001683,30]
[407786123,1772799032345,-6875.61719403,0.000169,2]
[407786125,1772799032354,-2000.0,0.000169,2]
[407786127,1772799032364,-2000.0,0.000169,2]
[407786129,1772799032374,-2000.0,0.000169,2]
[407786131,1772799032385,-500.0,0.00016973,2]
[407786132,1772799032394,-500.0,0.00016973,2]
[407786133,1772799032404,-500.0,0.00016973,2]
[407786134,1772799032413,-500.12727946,0.00016973,2]
[407786135,1772799032423,-240.12890457,0.00016973,2]
[407786136,1772799032432,-500.0,0.00016973,2]
[407786137,1772799032441,-500.0,0.00016973,2]
[407786138,1772799032451,-501.14462458,0.00016973,2]
[407786139,1772799032461,-219.32528239,0.00016973,2]
[407786140,1772799032471,-500.0,0.00016973,2]
[407786141,1772799032480,-500.0,0.00016973,2]
[407786142,1772799032489,-500.0,0.00016973,2]
[407786143,1772799032499,-500.0,0.00016973,2]
[407786144,1772799032508,-167.13661669,0.00016973,2]
[407786145,1772799032517,-500.0,0.00016973,2]
[407786146,1772799032527,-500.0,0.00016973,2]
[407786147,1772799032536,-167.08473967,0.00016973,2]
[407786148,1772799032545,-167.11665281,0.00016973,2]
[407786149,1772799032555,-5000.0,0.00016999,2]
[407786150,1772799032565,-129790.89728631,0.00017,2]
[407786151,1772799032575,-300.0,0.00017,2]
[407786152,1772799032584,-179.45599622,0.00017,2]
[407786153,1772799032594,-172.87,0.0001706,2]
[407786154,1772799032603,-166.66,0.00017097,2]
[407786155,1772799032613,-6875.61719403,0.00017233,2]
[407786156,1772799032622,-172.87,0.0001733,2]
[407786157,1772799032632,-166.66,0.0001745,2]
[407786158,1772799032641,-500.0,0.00017521,2]
[407786159,1772799032650,-500.0,0.00017521,2]
[407786160,1772799032660,-500.0,0.00017521,2]
[407786161,1772799032669,-1000.0,0.00017521,2]
[407786162,1772799032679,-500.0,0.00017521,2]
[407786163,1772799032688,-500.0,0.00017521,2]
[407786164,1772799032697,-500.0,0.00017521,2]
[407786165,1772799032707,-1000.0,0.00017521,2]
[407786166,1772799032717,-6875.61719403,0.00017567,2]
[407786167,1772799032726,-172.87,0.000176,2]
[407786168,1772799032741,-1448.5564,0.00017671,2]
[407786169,1772799032750,-1680.0,0.00017698,2]
[407786170,1772799032760,-166.66,0.00017802,2]
[407786171,1772799032770,-172.87,0.0001787,2]
[407786172,1772799032781,-6875.61719403,0.000179,2]
[407786173,1772799032793,-12798.57558659,0.0001799,2]
[407786174,1772799032815,-1135.36605329,0.0001799,2]
[407786175,1772799032826,-1207.84090024,0.0001799,2]
[407786176,1772799032854,-1272.9852858,0.0001799,2]
[407786177,1772799032865,-404.57355337,0.0001799,2]
[407786178,1772799032876,-1380.09438079,0.0001799,2]
[407786179,1772799032888,-387.11639996,0.0001799,2]
[407786180,1772799032901,-1413.44783996,0.0001799,2]
[407786181,1772799032911,-287.80347915,0.00018068,2]
[407786182,1772799032920,-500.0,0.00018068,2]
[407786183,1772799032930,-172.87,0.0001814,2]
[407786184,1772799032940,-166.66,0.00018155,2]
[407786185,1772799032950,-358.18364159,0.00018233,2]
[407786186,1772799033030,-795.683759,0.00018233,2]
[407786201,1772799037997,-500.0,0.00017989,2]
[407786202,1772799038007,-206.31928051,0.00018233,2]
[407786203,1772799038018,-1401.9124575,0.00018233,2]
[407786205,1772799038084,-4113.51805543,0.00018233,2]
[407786206,1772799038094,-166.66,0.00018507,2]
[407786207,1772799038103,-6875.61719403,0.00018567,2]
[407786208,1772799038113,-6875.61719403,0.000189,2]
[407786209,1772799038122,-12000.9,0.00018937,2]
[407786210,1772799038132,-350.0,0.00019,2]
[407786211,1772799038142,-360.39836175,0.0001901,7]
[407786212,1772799038151,-208.0,0.00019232,2]
[407786213,1772799038161,-511.33957118,0.00019232,2]
[407786214,1772799038171,-6875.61719403,0.00019233,2]
[407786215,1772799038180,-160.0,0.00019288,2]
[407786216,1772799038190,-671.0,0.00019444,2]
[407786217,1772799038199,-260.0,0.00019449,2]
[407786218,1772799038208,-6875.61719403,0.00019567,2]
[407786219,1772799038218,-156.63854844,0.00019873,2]
[407786220,1772799038228,-156.63854842,0.0001988,2]
[407786221,1772799038237,-1681.7707,0.0001988,2]
[407786222,1772799038247,-156.63854842,0.00019887,2]
[407786223,1772799038257,-156.63854842,0.00019893,2]
[407786224,1772799038267,-2471.36262516,0.00019897,2]
[407786225,1772799038276,-2471.36262516,0.00019898,2]
[407786226,1772799038285,-2471.36262516,0.00019899,2]
[407786227,1772799038294,-2500.0,0.000199,2]
[407786228,1772799038307,-2471.36262516,0.000199,2]
[407786229,1772799038316,-358.58613483,0.000199,2]
[407786230,1772799038325,-6875.61719403,0.000199,2]
[407786232,1772799038335,-156.63854842,0.000199,2]
[407786234,1772799038346,-199.65636282,0.000199,3]
[407786235,1772799038356,-806.22288376,0.000199,2]
[407786236,1772799038366,-300.21014576,0.000199,2]
[407786237,1772799038377,-20118.81758773,0.000199,2]
[407786238,1772799038386,-11842.22879035,0.0001995,15]
[407786239,1772799038397,-500.0,0.00019973,2]
[407786240,1772799038407,-500.0,0.00019973,2]
[407786242,1772799038417,-500.37983606,0.00019973,2]
[407786243,1772799038428,-500.0,0.00019973,2]
[407786244,1772799038438,-164.89685656,0.00019973,2]
[407786245,1772799038447,-500.0,0.00019973,2]
[407786246,1772799038458,-500.0,0.00019973,2]
[407786247,1772799038469,-500.0,0.00019973,2]
[407786248,1772799038478,-500.0,0.00019973,2]
[407786249,1772799038486,-500.0,0.00019973,2]
[407786250,1772799038495,-500.0,0.00019973,2]
[407786251,1772799038505,-119258.6679168,0.0001998,2]
[407786252,1772799038515,-201.54110793,0.0001999,2]
[407786253,1772799038525,-151.0,0.00019997,2]
[407786254,1772799038535,-500.0,0.00019998,2]
[407786255,1772799038545,-513.82971937,0.00019999,2]
[407786256,1772799038555,-500.0,0.00019999,2]
[407786257,1772799038564,-500.0,0.00019999,2]
[407786258,1772799038573,-500.0,0.00019999,2]
[407786259,1772799038583,-500.0,0.00019999,2]
[407786260,1772799038593,-500.0,0.00019999,2]
[407786261,1772799038603,-500.0,0.00019999,2]
[407786262,1772799038613,-500.0,0.00019999,2]
[407786263,1772799038623,-292.81,0.00019999,2]
[407786264,1772799038632,-274.62,0.00019999,2]
[407786265,1772799038642,-506.32822282,0.00019999,2]
[407786266,1772799038652,-283.16692719,0.00019999,2]
[407786267,1772799038662,-500.0,0.00019999,2]
[407786268,1772799038671,-500.0,0.00019999,2]
[407786269,1772799038681,-600.82614947,0.00019999,2]
[407786270,1772799038690,-247.51067254,0.00019999,2]
[407786271,1772799038701,-150.0,0.0002,7]
[407786272,1772799038711,-921792.89883969,0.0002,2]
[407786273,1772799038724,-9939.1673708,0.0002,2]
[407786274,1772799038735,-1000.18778537,0.0002,2]
[407786275,1772799038746,-865.69,0.0002,2]
[407786276,1772799038757,-671.07308538,0.0002,2]
[407786277,1772799038824,-1057.47540344,0.0002,2]
[407786278,1772799039164,-70000.00000016,0.0002,2]
[407786279,1772799039175,-7077.01967299,0.0002,2]
[407786280,1772799039211,-1815.3890527,0.0002,2]
[407786281,1772799039222,-6828.92207709,0.0002,2]
[407786282,1772799039234,-5983.74625197,0.0002,2]
[407786283,1772799039245,-2222.62595504,0.0002,2]
[407786284,1772799039257,-5271.61787563,0.0002,2]
[407786285,1772799039269,-3301.36392329,0.0002,2]
[407786294,1772799043803,-3851.84288733,0.000169,2]
[407786296,1772799043857,-867.58,0.000169,2]
[407786298,1772799043974,-16146.36300254,0.000169,2]
[407786299,1772799044182,-77457.86181013,0.000169,2]
[407786300,1772799044193,-18313.857521,0.00019996,2]
[407786301,1772799044203,-2972604.06934289,0.0002,2]
[407786302,1772799044229,-68955.93682059,0.0002,2]
[407786313,1772799046042,-29016.0877336,0.0002,2]
[407786318,1772799046096,-255.3125,0.0002,2]
[407786323,1772799046154,-101949.999999,0.0002,2]
[407786324,1772799046207,-2100.0,0.0002,2]
[407786325,1772799046219,-1990.0918004,0.0002,2]
[407786329,1772799047214,-3122.81980553,0.0002,2]
[407786331,1772799091960,515.0,0.00014,2]
[407786333,1772799146238,351.71710431,0.00012,2]
[407786334,1772799183035,515.0,0.00014,2]
[407786335,1772799245323,220.03,0.00013111,2]
[407786336,1772799268379,515.0,0.00014,2]
[407786338,1772799500518,162.0,0.00015,2]
[407786339,1772799595220,-150.0,0.00015471,2]
[407786340,1772799595242,-150.0,0.00015471,2]
[407786341,1772799595264,-299.8335932,0.00015512,2]
[407786342,1772799595287,-353.07408918,0.00015554,2]
[407786343,1772799595310,-600.76717863,0.00015636,2]
[407786344,1772799595331,-489.41,0.00015682,2]
[407786345,1772799595353,-201.10137607,0.00015724,2]
[407786346,1772799595375,-258.03814449,0.000158,2]
[407786347,1772799604595,500.0,0.00015372,2]
[407786348,1772799633136,515.8896,0.00014,2]
[407786349,1772799647987,150.0,0.00015769,7]
[407786350,1772799648711,410.481918,0.00015769,7]
[407786351,1772799649927,670.963837,0.00015769,7]
[407786352,1772799650435,931.445755,0.00015769,7]
[407786353,1772799651448,1191.927674,0.00015769,7]
[407786354,1772799651864,1452.409592,0.00015769,7]
[407786355,1772799653206,1712.891511,0.00015769,7]
[407786356,1772799653578,1973.37343,0.00015769,7]
[407786357,1772799654399,2233.855348,0.00015769,7]
[407786358,1772799655205,2494.337267,0.00015769,7]
[407786359,1772799834021,3260.19968643,0.00015626,2]
[407786361,1772799913803,300.0,0.0001548,2]
[407786362,1772799922487,201.73641006,0.00017,120]
[407786372,1772800232557,-347.43508066,0.000154,2]
[407786373,1772800232569,-9652.56491934,0.000154,2]
[407786374,1772800232578,-172.00113314,0.00015423,2]
[407786375,1772800232588,-1000.0,0.00015442,2]
[407786376,1772800232600,-450.0,0.00015442,2]
[407786377,1772800232610,-172.00113314,0.00015448,2]
[407786378,1772800232619,-172.00113314,0.00015473,2]
[407786379,1772800232628,-2716.8,0.0001548,2]
[407786380,1772800232639,-200.0,0.00015523,2]
[407786381,1772800232648,-1200.0,0.00015525,2]
[407786382,1772800232658,-300.0,0.00015525,2]
[407786383,1772800232669,-450.0,0.00015525,30]
[407786384,1772800232678,-1681.7707,0.00015526,2]
[407786385,1772800232688,-3261.3123,0.00015526,2]
[407786386,1772800232697,-68829.02742634,0.00015526,2]
[407786387,1772800232709,-894.04280801,0.00015526,2]
[407786388,1772800232735,-2256.41771873,0.00015526,2]
[407786389,1772800232746,-264.80549695,0.00015526,2]
[407786390,1772800232757,-687.16138692,0.00015526,2]
[407786391,1772800232898,-1407.00725734,0.00015526,2]
[407786392,1772800232911,-1295.21988168,0.00015526,2]
[407786393,1772800232923,-1286.0085527,0.00015526,2]
[407786394,1772800232934,-492.21212702,0.00015526,2]
[407786395,1772800232982,-1634.00894998,0.00015526,2]
[407786396,1772800232993,-321.55982235,0.00015526,2]
[407786397,1772800233005,-18956.17627198,0.00015526,2]
[407786398,1772800233015,-1323.26941474,0.00015573,2]
[407786399,1772800233026,-823.50944647,0.00015573,2]
[407786400,1772800233035,-978.0762795,0.00015573,2]
[407786401,1772800233046,-6779.46985046,0.00015573,2]
[407786402,1772800233104,-784.32744492,0.00015573,2]
[407786405,1772800238171,-404.55415702,0.00015573,2]
[407786406,1772800238183,-449.3404125,0.00015573,2]
[407786407,1772800238196,-780.00000001,0.00015573,2]
[407786408,1772800238299,-868.85891269,0.00015573,2]
[407786409,1772800238310,-209.48,0.00015625,2]
[407786410,1772800238319,-500.0,0.00015625,2]
[407786411,1772800238328,-500.0,0.00015625,2]
[407786412,1772800238337,-360.77110568,0.00015625,2]
[407786413,1772800238346,-500.0,0.00015625,2]
[407786414,1772800238356,-500.0,0.00015625,2]
[407786415,1772800238364,-500.0,0.00015625,2]
[407786416,1772800238373,-500.0,0.00015625,2]
[407786417,1772800238382,-500.0,0.00015625,2]
[407786418,1772800238391,-500.0,0.00015625,2]
[407786419,1772800238400,-500.0,0.00015625,2]
[407786420,1772800238409,-500.0,0.00015625,2]
[407786421,1772800238418,-500.0,0.00015625,2]
[407786422,1772800238428,-500.0,0.00015625,2]
[407786423,1772800238436,-500.0,0.00015625,2]
[407786424,1772800238445,-500.0,0.00015625,2]
[407786425,1772800238454,-500.0,0.00015625,2]
[407786427,1772800238464,-500.0,0.00015625,2]
[407786429,1772800238473,-500.0,0.00015625,2]
[407786431,1772800238483,-500.0,0.00015625,2]
[407786433,1772800238492,-500.0,0.00015625,2]
[407786435,1772800238501,-500.0,0.00015625,2]
[407786436,1772800238511,-500.0,0.00015625,2]
[407786437,1772800238521,-500.0,0.00015625,2]
[407786438,1772800238530,-500.0,0.00015625,2]
[407786439,1772800238539,-500.0,0.00015625,2]
[407786440,1772800238549,-500.0,0.00015625,2]
[407786441,1772800238558,-500.0,0.00015625,2]
[407786442,1772800238568,-500.0,0.00015625,2]
[407786443,1772800238577,-500.0,0.00015625,2]
[407786444,1772800238587,-500.0,0.00015625,2]
[407786445,1772800238601,-500.0,0.00015625,2]
[407786446,1772800238611,-500.0,0.00015625,2]
[407786447,1772800238620,-500.0,0.00015625,2]
[407786448,1772800238630,-500.0,0.00015625,2]
[407786449,1772800238642,-500.0,0.00015625,2]
[407786450,1772800238652,-500.0,0.00015625,2]
[407786451,1772800238662,-500.0,0.00015625,2]
[407786452,1772800238672,-500.0,0.00015625,2]
[407786453,1772800238681,-500.0,0.00015625,2]
[407786454,1772800238691,-500.0,0.00015625,2]
[407786455,1772800238700,-500.0,0.00015625,2]
[407786456,1772800238709,-605.08942454,0.00015625,2]
[407786457,1772800238719,-500.0,0.00015625,2]
[407786458,1772800238728,-500.0,0.00015625,2]
[407786459,1772800238738,-500.0,0.00015625,2]
[407786460,1772800238747,-500.0,0.00015625,2]
[407786461,1772800238756,-500.0,0.00015625,2]
[407786462,1772800238766,-500.0,0.00015625,2]
[407786463,1772800238775,-500.0,0.00015625,2]
[407786464,1772800238785,-500.0,0.00015625,2]
[407786465,1772800238795,-500.0,0.00015625,2]
[407786466,1772800238804,-450.0,0.00015625,2]
[407786467,1772800238814,-500.0,0.00015625,2]
[407786468,1772800238823,-500.0,0.00015625,2]
[407786469,1772800238832,-500.0,0.00015625,2]
[407786470,1772800238842,-500.0,0.00015625,2]
[407786471,1772800238852,-500.0,0.00015625,2]
[407786472,1772800238862,-367314.40031357,0.00015626,2]
[407786473,1772800238872,-500.34430685,0.00015673,2]
[407786474,1772800238881,-500.0,0.00015673,2]
[407786475,1772800238892,-500.0,0.00015673,2]
[407786476,1772800238901,-500.0,0.00015673,2]
[407786477,1772800238910,-500.0,0.00015673,2]
[407786478,1772800238920,-500.0,0.00015673,2]
[407786479,1772800238929,-163.88295064,0.00015673,2]
[407786480,1772800238938,-500.0,0.00015673,2]
[407786481,1772800238948,-500.0,0.00015673,2]
[407786482,1772800238957,-179.13,0.00015824,2]
[407786483,1772800238967,-209.48,0.00015899,2]
[407786484,1772800238976,-515.61114417,0.000159,2]
[407786485,1772800238985,-2000.0,0.000159,2]
[407786486,1772800238995,-258.69744367,0.0001596,2]
[407786487,1772800239004,-500.0,0.00015999,2]
[407786488,1772800239013,-500.0,0.00015999,2]
[407786489,1772800239023,-495.06809919,0.00015999,2]
[407786490,1772800239032,-179.39145694,0.00015999,2]
[407786491,1772800239042,-500.0,0.00015999,2]
[407786492,1772800239051,-159.33348049,0.00015999,2]
[407786493,1772800239060,-500.0,0.00015999,2]
[407786494,1772800239070,-400.27418962,0.00015999,2]
[407786495,1772800239079,-500.0,0.00015999,2]
[407786496,1772800239089,-500.0,0.00015999,2]
[407786497,1772800239098,-2000.0,0.00016,2]
[407786498,1772800239108,-11044.62705703,0.00016054,2]
[407786499,1772800239118,-2000.0,0.000161,2]
[407786500,1772800239127,-1323.26941474,0.00016191,2]
[407786501,1772800239136,-2000.0,0.000162,2]
[407786502,1772800239145,-589.03508066,0.00016221,2]
[407786503,1772800239155,-309.98091476,0.00016221,2]
[407786504,1772800239164,-500.0,0.00016221,2]
[407786505,1772800239173,-1000.0,0.00016221,2]
[407786506,1772800239183,-1000.0,0.00016221,2]
[407786507,1772800239192,-407.46862187,0.00016221,2]
[407786508,1772800239201,-500.18261012,0.00016221,2]
[407786509,1772800239211,-2000.0,0.000163,2]
[407786510,1772800239219,-2000.0,0.000164,2]
[407786511,1772800239228,-228.32,0.00016438,2]
[407786512,1772800239238,-203.3962458,0.000165,2]
[407786513,1772800239247,-335.43054603,0.000165,2]
[407786514,1772800239256,-467.46484625,0.000165,2]
[407786515,1772800239266,-386.26238503,0.000165,2]
[407786516,1772800239275,-5217.664,0.000165,2]
[407786517,1772800239284,-359.974,0.000165,2]
[407786518,1772800239293,-153.07874238,0.000165,2]
[407786519,1772800239302,-2000.0,0.000165,2]
[407786520,1772800239312,-11044.62705703,0.00016535,2]
[407786521,1772800239321,-500.0,0.00016573,2]
[407786522,1772800239331,-500.0,0.00016573,2]
[407786523,1772800239340,-500.0,0.00016573,2]
[407786524,1772800239349,-500.0,0.00016573,2]
[407786525,1772800239359,-500.0,0.00016573,2]
[407786526,1772800239368,-500.0,0.00016573,2]
[407786527,1772800239378,-500.0,0.00016573,2]
[407786528,1772800239387,-500.0,0.00016573,2]
[407786529,1772800239397,-500.0,0.00016573,2]
[407786530,1772800239406,-500.0,0.00016573,2]
[407786531,1772800239415,-251.3544907,0.0001659,2]
[407786532,1772800239425,-151.0,0.0001659,2]
[407786533,1772800239434,-151.0,0.0001659,2]
[407786534,1772800239444,-151.0,0.0001659,2]
[407786535,1772800239453,-151.0,0.0001659,2]
[407786536,1772800239462,-151.0,0.0001659,2]
[407786537,1772800239472,-151.0,0.0001659,2]
[407786538,1772800239481,-151.0,0.0001659,2]
[407786539,1772800239491,-151.0,0.0001659,2]
[407786540,1772800239500,-151.0,0.0001659,2]
[407786541,1772800239509,-151.0,0.0001659,2]
[407786542,1772800239519,-151.0,0.0001659,2]
[407786543,1772800239528,-170.94637665,0.000166,2]
[407786544,1772800239538,-349.1,0.000166,2]
[407786545,1772800239548,-438.37292205,0.000166,2]
[407786546,1772800239557,-157.40983265,0.000166,2]
[407786547,1772800239566,-268.74096126,0.000166,2]
[407786548,1772800239575,-586.26351862,0.000166,2]
[407786549,1772800239585,-1308.16777389,0.000166,2]
[407786550,1772800239596,-8006.87283045,0.000166,2]
[407786551,1772800239606,-2000.0,0.000166,2]
[407786552,1772800239617,-510.0,0.00016643,2]